fUSD/lending_fUSD_20260315
["ID","MTS","AMOUNT","RATE_DAILY","PERIOD"]
[408391444,1773550232211,-500.0,0.00013699,2]
[408391445,1773550232220,-500.0,0.00013699,2]
[408391446,1773550232231,-500.0,0.00013699,2]
[408391447,1773550232240,-500.0,0.00013699,2]
[408391448,1773550232249,-500.0,0.00013699,2]
[408391449,1773550232258,-500.0,0.00013699,2]
[408391451,1773550232267,-553.88798041,0.00013699,2]
[408391453,1773550232278,-500.0,0.00013699,2]
[408391455,1773550232287,-500.0,0.00013699,2]
[408391457,1773550232297,-500.0,0.00013699,2]
[408391459,1773550232307,-500.0,0.00013699,2]
[408391462,1773550232316,-500.0,0.00013699,2]
[408391464,1773550232326,-500.0,0.00013699,2]
[408391467,1773550232335,-626.39,0.00013699,2]
[408391469,1773550232347,-1173.54523839,0.0001394,2]
[408391471,1773550232356,-626.39,0.00013973,2]
[408391473,1773550232365,-494.287825,0.00014238,7]
[408391475,1773550232374,-626.39,0.00014247,2]
[408391477,1773550232384,-626.39,0.00014521,2]
[408391479,1773550232393,-300.0,0.00014585,2]
[408391481,1773550232403,-600.0,0.00014585,2]
[408391483,1773550232412,-500.0,0.00014585,2]
[408391486,1773550232421,-500.0,0.00014585,2]
[408391488,1773550232432,-500.0,0.00014585,2]
[408391490,1773550232445,-500.0,0.00014585,2]
[408391492,1773550232455,-300.0,0.00014585,2]
[408391493,1773550232464,-300.0,0.00014585,2]
[408391494,1773550232473,-319.00181675,0.00014755,2]
[408391495,1773550232482,-626.39,0.00014795,2]
[408391496,1773550232491,-255.0,0.00014821,2]
[408391497,1773550232501,-1951.0,0.0001486,2]
[408391498,1773550232510,-426.0,0.00014889,2]
[408391499,1773550232519,-480.0,0.00014919,2]
[408391500,1773550232529,-3090.41529227,0.00014935,2]
[408391501,1773550232538,-766.0,0.00014949,2]
[408391502,1773550232550,-151.0,0.00014978,2]
[408391503,1773550232559,-151.0,0.00014978,2]
[408391504,1773550232568,-151.0,0.00014978,2]
[408391505,1773550232578,-151.0,0.00014978,2]
[408391506,1773550232587,-151.0,0.00014978,2]
[408391507,1773550232596,-151.0,0.00014978,2]
[408391508,1773550232605,-226.83535136,0.00014978,2]
[408391509,1773550232614,-590.0,0.00014978,2]
[408391510,1773550232623,-367.59075052,0.00014987,2]
[408391511,1773550232632,-5000.0,0.00014987,2]
[408391512,1773550232642,-300.0,0.00014987,2]
[408391513,1773550232651,-300.0,0.00014987,2]
[408391514,1773550232660,-300.0,0.00014987,2]
[408391515,1773550232669,-407.9462802,0.00014987,2]
[408391516,1773550232678,-600.0,0.00014987,2]
[408391517,1773550232687,-600.0,0.00014987,2]
[408391518,1773550232696,-600.0,0.00014987,2]
[408391519,1773550232705,-637.113313,0.00014987,2]
[408391520,1773550232715,-500.0,0.00014987,2]
[408391521,1773550232723,-250.0,0.00014987,2]
[408391522,1773550232733,-500.0,0.00014987,2]
[408391523,1773550232745,-1362.0,0.00015008,2]
[408391524,1773550232755,-324.0,0.00015012,2]
[408391525,1773550232765,-1680.0,0.00015066,2]
[408391526,1773550232774,-626.42947539,0.00015069,2]
[408391527,1773550232784,-345.0,0.00015098,2]
[408391528,1773550232793,-266.0,0.00015135,2]
[408391529,1773550232802,-155.0,0.00015183,2]
[408391530,1773550232811,-700.0,0.00015231,2]
[408391531,1773550232821,-645.0,0.00015268,2]
[408391532,1773550232830,-366.0,0.00015349,2]
[408391533,1773550232839,-465.0,0.00015379,2]
[408391534,1773550232848,-433.0,0.00015504,2]
[408391535,1773550232857,-1291.0,0.00015547,2]
[408391536,1773550232866,-5578.68,0.00015628,2]
[408391537,1773550232876,-37124.63,0.00015628,2]
[408391538,1773550232884,-500.0,0.00015673,2]
[408391539,1773550232894,-504.617059,0.00015673,2]
[408391540,1773550232903,-168.66583428,0.00015673,2]
[408391541,1773550232912,-500.0,0.00015673,2]
[408391542,1773550232921,-608.0,0.00015787,2]
[408391543,1773550232930,-2305.86945567,0.0001579,3]
[408391544,1773550232944,-1771.74566935,0.00015818,2]
[408391545,1773550232953,-500.0,0.00015838,2]
[408391546,1773550232963,-780.0,0.00015865,2]
[408391547,1773550232971,-3211.27481161,0.00015987,2]
[408391548,1773550232981,-8527.53662734,0.00015989,2]
[408391549,1773550232990,-3240.0,0.00015999,2]
[408391550,1773550233000,-200.0,0.00015999,2]
[408391551,1773550233009,-150.0,0.00015999,2]
[408391552,1773550233018,-150.02,0.00016,2]
[408391553,1773550233028,-178.0,0.0001604,2]
[408391554,1773550233037,-1000.0,0.00016221,2]
[408391555,1773550233047,-150.0,0.000164,2]
[408391556,1773550233056,-213.0,0.000164,2]
[408391557,1773550233065,-302.46,0.000164,2]
[408391558,1773550233075,-353.5768258,0.000164,2]
[408391559,1773550233084,-150.0,0.00016438,2]
[408391560,1773550233093,-150.0,0.00016493,2]
[408391561,1773550233102,-311.69969355,0.00016527,2]
[408391562,1773550233112,-238.93218258,0.00016548,2]
[408391563,1773550233121,-2351.0,0.00016572,2]
[408391564,1773550233131,-166.67,0.00016712,2]
[408391565,1773550233152,-1500.0,0.00016768,2]
[408391566,1773550233162,-160.0,0.00016808,2]
[408391567,1773550233171,-9999.99,0.00016922,2]
[408391568,1773550233180,-1208.06,0.00016922,2]
[408391569,1773550233190,-299.99,0.00016922,4]
[408391570,1773550233204,-999.99,0.00016922,2]
[408391571,1773550233214,-9999.99,0.00016922,2]
[408391572,1773550233223,-150.99,0.00016922,2]
[408391573,1773550233235,-1781.00709309,0.00016994,2]
[408391574,1773550233244,-509.0,0.00017,2]
[408391575,1773550233254,-215.779821,0.00017085,7]
[408391576,1773550233263,-295.71924551,0.00017316,2]
[408391577,1773550233272,-250.0,0.00017519,2]
[408391578,1773550233281,-2573.30002675,0.00017641,3]
[408391579,1773550233291,-3292.0,0.00018229,2]
[408391580,1773550233301,-308.15210792,0.00018266,2]
[408391581,1773550233310,-6755.3534,0.0001855,2]
[408391582,1773550233320,-500.0,0.000186,2]
[408391583,1773550233329,-500.0,0.000186,2]
[408391584,1773550233338,-500.0,0.000186,2]
[408391585,1773550233348,-500.0,0.000186,2]
[408391586,1773550233357,-500.0,0.000186,2]
[408391587,1773550233367,-500.0,0.000186,2]
[408391588,1773550233379,-500.0,0.000186,2]
[408391589,1773550233388,-500.0,0.000186,2]
[408391590,1773550233398,-500.0,0.000186,2]
[408391591,1773550233409,-900.0,0.000186,2]
[408391592,1773550233420,-500.0,0.000186,2]
[408391593,1773550233430,-535.39,0.00018841,2]
[408391594,1773550233444,-2500.0,0.00018908,2]
[408391595,1773550233453,-5000.0,0.00018908,2]
[408391596,1773550233463,-2469.8052798,0.00018908,2]
[408391597,1773550233474,-192.58538836,0.00018908,2]
[408391598,1773550233486,-529.6536104,0.00019007,2]
[408391599,1773550233497,-484.99509282,0.00019007,2]
[408391600,1773550233511,-500.0,0.00019007,2]
[408391601,1773550233523,-500.0,0.00019007,2]
[408391602,1773550233534,-500.0,0.00019007,2]
[408391603,1773550233544,-500.0,0.00019007,2]
[408391604,1773550233554,-500.0,0.00019007,2]
[408391605,1773550233563,-500.0,0.00019007,2]
[408391606,1773550233580,-297.37153872,0.00019007,2]
[408391607,1773550233591,-500.0,0.00019007,2]
[408391608,1773550233601,-328.43443361,0.00019007,2]
[408391609,1773550233611,-500.0,0.00019007,2]
[408391610,1773550233622,-500.0,0.00019007,2]
[408391611,1773550233631,-500.0,0.00019007,2]
[408391612,1773550233641,-500.0,0.00019007,2]
[408391613,1773550233651,-500.0,0.00019007,2]
[408391614,1773550233660,-500.0,0.00019007,2]
[408391615,1773550233670,-500.0,0.00019007,2]
[408391616,1773550233680,-500.0,0.00019007,2]
[408391617,1773550233689,-500.0,0.00019007,2]
[408391618,1773550233886,-500.0,0.00019007,2]
[408391619,1773550233897,-500.0,0.00019007,2]
[408391620,1773550233907,-227.65796584,0.00019007,2]
[408391621,1773550233917,-500.0,0.00019007,2]
[408391622,1773550233926,-500.0,0.00019007,2]
[408391623,1773550233938,-500.0,0.00019007,2]
[408391624,1773550233948,-500.0,0.00019007,2]
[408391625,1773550233957,-500.0,0.00019007,2]
[408391626,1773550233966,-500.0,0.00019007,2]
[408391627,1773550233976,-500.0,0.00019007,2]
[408391628,1773550233987,-86542.81939035,0.00019008,2]
[408391629,1773550234000,-20096.02602423,0.00019008,2]
[408391630,1773550234012,-43886.47933957,0.00019008,2]
[408391633,1773550238162,-4000.0,0.00015628,2]
[408391634,1773550238172,-4000.0,0.00016019,2]
[408391635,1773550238182,-412.85779777,0.0001641,2]
[408391636,1773550238194,-1216.72612046,0.0001641,2]
[408391637,1773550238205,-1187.75083997,0.0001641,2]
[408391638,1773550238219,-378.29286825,0.0001641,2]
[408391639,1773550238233,-804.37237355,0.0001641,2]
[408391640,1773550238243,-96.78762645,0.000168,2]
[408391641,1773550238277,-3903.21237355,0.000168,2]
[408391642,1773550238286,-482.34060812,0.00017191,2]
[408391643,1773550238334,-3517.65939188,0.00017191,2]
[408391644,1773550238347,-7663.53437558,0.00019008,2]
[408391658,1773550240252,-2341811.14087027,0.00019008,2]
[408391659,1773550240262,-1164.78,0.00019008,2]
[408391660,1773550240272,-188.00212322,0.00019062,2]
[408391661,1773550240281,-500.0,0.00019073,2]
[408391662,1773550240291,-502.23388841,0.00019073,2]
[408391663,1773550240301,-500.0,0.00019073,2]
[408391664,1773550240310,-501.50584164,0.00019073,2]
[408391665,1773550240320,-500.0,0.00019073,2]
[408391666,1773550240329,-526.17740878,0.00019073,2]
[408391667,1773550240339,-312.49833716,0.00019073,2]
[408391668,1773550240349,-503.80883782,0.00019073,2]
[408391669,1773550240358,-500.0,0.00019073,2]
[408391670,1773550240368,-500.0,0.00019073,2]
[408391671,1773550240377,-500.0,0.00019073,2]
[408391672,1773550240386,-344.59,0.00019115,2]
[408391673,1773550240395,-1000.0,0.00019621,2]
[408391674,1773550240405,-503.99703224,0.00019621,2]
[408391675,1773550240414,-1000.0,0.00019621,2]
[408391676,1773550240424,-172.6439,0.0002,2]
[408391677,1773550240435,-172.6439,0.0002,2]
[408391678,1773550240445,-172.6439,0.0002,2]
[408391679,1773550240455,-172.6439,0.0002,2]
[408391680,1773550240464,-172.6439,0.0002,2]
[408391681,1773550240473,-172.6439,0.0002,2]
[408391682,1773550240482,-454.8,0.0002,2]
[408391683,1773550240492,-941.0,0.00020005,2]
[408391684,1773550240501,-941.0,0.00020019,2]
[408391685,1773550240510,-4609.0,0.00020052,2]
[408391686,1773550240520,-1500.0,0.00020168,2]
[408391687,1773550240530,-1504.77307039,0.00020168,2]
[408391688,1773550240539,-167.91,0.00020191,2]
[408391689,1773550240547,-167.91,0.00020191,2]
[408391690,1773550240557,-941.0,0.00020328,2]
[408391691,1773550240566,-941.0,0.00020341,2]
[408391692,1773550240575,-941.0,0.00020354,2]
[408391693,1773550240584,-168.0,0.00020373,2]
[408391694,1773550240594,-158.72,0.00020548,2]
[408391695,1773550240603,-2002.713,0.00020548,2]
[408391696,1773550240612,-177.132,0.00020548,2]
[408391697,1773550240621,-272.88,0.000206,7]
[408391698,1773550240632,-500.0,0.00020716,2]
[408391699,1773550240641,-941.0,0.00020827,2]
[408391700,1773550240650,-168.0,0.00020889,2]
[408391701,1773550240659,-941.0,0.0002113,2]
[408391702,1773550240668,-941.0,0.00021151,2]
[408391703,1773550240677,-168.0,0.00021157,2]
[408391704,1773550240687,-941.0,0.00021203,2]
[408391705,1773550240695,-941.0,0.00021212,2]
[408391706,1773550240705,-941.0,0.00021267,2]
[408391707,1773550240715,-941.0,0.00021331,2]
[408391708,1773550240727,-2940.67926173,0.00021342,16]
[408391709,1773550240738,-258.935785,0.00021356,7]
[408391710,1773550240748,-941.0,0.00021375,2]
[408391711,1773550240760,-941.0,0.00021384,2]
[408391712,1773550240769,-941.0,0.00021477,2]
[408391713,1773550240777,-941.0,0.00021523,2]
[408391714,1773550240786,-941.0,0.00021532,2]
[408391715,1773550240795,-168.0,0.00021549,2]
[408391716,1773550240804,-941.0,0.00021551,2]
[408391717,1773550240813,-941.0,0.00021612,2]
[408391718,1773550240823,-941.0,0.00021814,2]
[408391719,1773550240833,-509.0,0.00021846,6]
[408391720,1773550240843,-5578.68,0.00021879,2]
[408391721,1773550240853,-941.0,0.00021892,2]
[408391722,1773550240863,-2500.0,0.00021917,2]
[408391723,1773550240874,-2500.0,0.00021917,2]
[408391724,1773550240883,-2500.0,0.00021917,2]
[408391725,1773550240892,-2500.0,0.00021917,2]
[408391726,1773550240901,-2500.0,0.00021917,2]
[408391727,1773550240910,-2500.0,0.00021917,2]
[408391728,1773550240919,-1445.1719844,0.00021917,2]
[408391729,1773550240928,-3161.0,0.00022058,2]
[408391730,1773550240937,-2000.0,0.000225,2]
[408391731,1773550240945,-150.0,0.00022553,7]
[408391732,1773550240954,-296.699099,0.00022555,7]
[408391733,1773550240963,-2469.8052798,0.00022683,2]
[408391734,1773550240973,-3124.36887928,0.00023192,22]
[408391735,1773550240983,-192.58538832,0.00023284,2]
[408391736,1773550240992,-272.69097746,0.00023434,2]
[408391737,1773550241002,-188.00212318,0.00023807,2]
[408391738,1773550241012,-168.0,0.00023898,2]
[408391739,1773550241022,-1106.0,0.0002419,5]
[408391740,1773550241031,-882.0,0.0002419,5]
[408391741,1773550241044,-278.96,0.00024658,2]
[408391742,1773550241054,-150.0,0.00024658,2]
[408391743,1773550241063,-159.37,0.00024938,2]
[408391744,1773550241073,-500.0,0.00025,30]
[408391745,1773550241082,-500.0,0.00025,30]
[408391746,1773550241093,-500.0,0.00025,30]
[408391747,1773550241103,-500.0,0.00025,30]
[408391748,1773550241114,-500.0,0.00025,30]
[408391749,1773550241123,-500.0,0.00025,30]
[408391750,1773550241132,-500.0,0.00025,30]
[408391751,1773550241141,-500.0,0.00025,30]
[408391752,1773550241150,-500.0,0.00025,30]
[408391753,1773550241159,-500.0,0.00025,30]
[408391754,1773550241168,-500.0,0.00025,30]
[408391755,1773550241178,-500.0,0.00025,30]
[408391756,1773550241187,-500.0,0.00025,30]
[408391757,1773550241195,-636.83467056,0.00025,30]
[408391758,1773550241204,-1816.73,0.0002504,2]
[408391759,1773550241213,-3312.73094899,0.00025043,30]
[408391760,1773550241223,-500.0,0.0002537,2]
[408391761,1773550241232,-150.0,0.0002589,2]
[408391762,1773550241245,-474.77138768,0.000259,2]
[408391763,1773550241255,-500.0,0.000259,2]
[408391764,1773550241263,-2000.0,0.000262,2]
[408391765,1773550241274,-502.15971815,0.00026237,2]
[408391766,1773550241286,-162.78725217,0.0002631,2]
[408391767,1773550241297,-1002.06348181,0.00026448,2]
[408391768,1773550241306,-2469.8052798,0.00026459,2]
[408391769,1773550241316,-500.0,0.0002648,2]
[408391770,1773550241326,-509.0,0.00026692,10]
[408391771,1773550241336,-3438.19367295,0.00026893,38]
[408391772,1773550241345,-16918.0,0.00027135,10]
[408391773,1773550241355,-479.0,0.00027135,10]
[408391774,1773550241364,-500.0,0.00027205,2]
[408391775,1773550241373,-293.65475174,0.00027297,2]
[408391776,1773550241382,-2562.43368594,0.00027297,2]
[408391777,1773550241393,-278.96,0.00027397,2]
[408391778,1773550241402,-14985.98,0.00027397,10]
[408391779,1773550241412,-14985.98,0.00027397,10]
[408391780,1773550241421,-23664.72,0.00027397,10]
[408391781,1773550241430,-19720.6,0.00027397,10]
[408391782,1773550241441,-166.66,0.00027569,30]
[408391783,1773550241452,-1043.0,0.00027575,2]
[408391784,1773550241462,-1264.339,0.00027575,2]
[408391785,1773550241471,-3778.941,0.00027575,2]
[408391786,1773550241480,-415.782,0.00027575,2]
[408391787,1773550241489,-192.58538832,0.0002766,2]
[408391788,1773550241498,-227.43,0.00027973,2]
[408391789,1773550241507,-4593.33983219,0.00028105,2]
[408391790,1773550241517,-166.66,0.00028149,30]
[408391791,1773550241526,-215.779821,0.00028475,30]
[408391792,1773550241535,-188.00212318,0.00028551,2]
[408391793,1773550241544,-166.66,0.0002873,30]
[408391794,1773550241553,-3496.69234142,0.00028744,44]
[408391795,1773550241564,-166.67,0.00028756,2]
[408391796,1773550241574,-497.25498154,0.00028767,2]
[408391797,1773550241584,-11345.36,0.0002902,120]
[408391798,1773550241592,-59081.39732252,0.0002902,2]
[408391804,1773550243271,-5080.39015633,0.0002902,2]
[408391805,1773550243327,-2446.61604084,0.0002902,2]
[408391806,1773550243338,-1937.27221359,0.0002902,2]
[408391807,1773550243384,-3406.52133596,0.0002902,2]
[408391815,1773550246064,-172.423,0.00027575,2]
[408391816,1773550246072,-2600.32025605,0.0002902,2]
[408391817,1773550246328,-2503.12623852,0.0002902,2]
[408391832,1773550373598,362.99,0.00011183,2]
[408391833,1773550373807,362.99,0.00011771,2]
[408391834,1773550374001,362.99,0.0001236,2]
[408391835,1773550374201,362.99,0.00012948,2]
[408391836,1773550793936,3736.21,0.0001199,2]
[408391837,1773550793957,10000.01,0.0001199,2]
[408391838,1773550793978,6263.8,0.0001199,2]
[408391839,1773550946813,1970.29540818,0.0001,2]
[408391840,1773550949423,269.74058762,0.000107,2]
[408391843,1773550955860,1496.1740042,9.5e-05,3]
[408391844,1773550955882,10000.01,9.5e-05,3]
[408391845,1773550955903,10000.01,9.5e-05,3]
[408391846,1773550955930,10000.01,9.5e-05,3]
[408391847,1773550955954,10000.01,9.5e-05,3]
[408391848,1773550955976,10000.01,9.5e-05,3]
[408391849,1773550955998,2353.83987543,9.5e-05,3]
[408391860,1773551432244,-279.539355,0.00013438,2]
[408391861,1773551432254,-5000.0,0.00013438,2]
[408391862,1773551432263,-260.0,0.00013438,2]
[408391863,1773551432272,-218.94862438,0.00013491,2]
[408391864,1773551432282,-500.0,0.00013525,2]
[408391865,1773551432291,-250.0,0.00013525,2]
[408391866,1773551432300,-268.67917147,0.0001353,2]
[408391867,1773551432310,-362.99,0.00013537,2]
[408391868,1773551432319,-162.11,0.000137,2]
[408391869,1773551432329,-300.0,0.0001397,2]
[408391870,1773551432338,-1200.0,0.0001397,2]
[408391871,1773551432347,-3340.78075924,0.00013971,2]
[408391872,1773551432359,-1254.41808677,0.00013971,2]
[408391875,1773551438345,-3103.47682249,0.00013971,2]
[408391964,1773551440432,-2301.3243315,0.00013971,2]
[408391965,1773551440442,-824.42530788,0.00014,2]
[408391966,1773551440452,-4765.81,0.00014004,2]
[408391967,1773551440461,-362.99,0.00014125,2]
[408391968,1773551440470,-412.858725,0.00014133,7]
[408391969,1773551440480,-2053.31240273,0.00014145,2]
[408391970,1773551440490,-755.0,0.00014339,2]
[408391971,1773551440500,-2524.15694634,0.0001439,2]
[408391972,1773551440510,-548.0,0.0001462,2]
[408391973,1773551440519,-1554.0,0.00014649,2]
[408391974,1773551440529,-1377.0,0.00014679,2]
[408391975,1773551440539,-6041.8324062,0.00014687,2]
[408391976,1773551440548,-770.34073635,0.000147,2]
[408391977,1773551440557,-2064.20392548,0.000147,2]
[408391978,1773551440567,-262379.94759631,0.000147,2]
[408391979,1773551440859,-301092.14905877,0.000147,2]
[408391980,1773551443414,-2267.02460942,0.000147,2]
[408391981,1773551443426,-299.269787,0.000147,2]
[408391994,1773551446215,-169197.4007312,0.000147,2]
[408391995,1773551446271,-572.01969778,0.000147,2]
[408391996,1773551446283,-1893.12,0.000147,2]
[408391997,1773551446294,-281.680004,0.000147,2]
[408391998,1773551446489,-258.61607416,0.000147,2]
[408392011,1773552124671,222.0,0.0002,120]
[408392012,1773552185612,1517.405997,0.00013137,2]
[408392013,1773552267861,159.37,0.0001093,2]
[408392014,1773552530908,1281.63,0.000129,10]
[408392015,1773552574443,170.26,0.00013,2]
[408392023,1773552631417,-195.182998,0.0001328,2]
[408392024,1773552631427,-300.0,0.00013325,2]
[408392025,1773552631436,-1200.0,0.00013325,2]
[408392026,1773552631445,-260.0,0.00013325,2]
[408392027,1773552631454,-11345.36,0.00013326,2]
[408392028,1773552631463,-208.13,0.00013363,2]
[408392029,1773552631472,-6041.8324062,0.00013549,2]
[408392030,1773552631482,-385284.71,0.00013563,2]
[408392031,1773552631491,-500.0,0.00013573,2]
[408392032,1773552631500,-500.0,0.00013573,2]
[408392033,1773552631509,-500.0,0.00013573,2]
[408392034,1773552631518,-500.0,0.00013573,2]
[408392035,1773552631528,-500.0,0.00013649,2]
[408392036,1773552631538,-250.0,0.00013656,2]
[408392037,1773552631548,-159.37,0.00013662,2]
[408392038,1773552631557,-300.0,0.00013797,2]
[408392039,1773552631570,-1247.91080987,0.00013879,2]
[408392040,1773552631580,-200.0,0.00013897,2]
[408392041,1773552631590,-6041.83240614,0.00013921,2]
[408392042,1773552631600,-3016.01148584,0.00013979,2]
[408392043,1773552631610,-4317.40577587,0.00014079,2]
[408392044,1773552631619,-500.0,0.00014121,2]
[408392045,1773552631629,-500.0,0.00014121,2]
[408392046,1773552631638,-1125.0,0.00014128,2]
[408392048,1773552631647,-555.0,0.00014133,2]
[408392050,1773552631656,-555.0,0.00014133,2]
[408392052,1773552631666,-555.0,0.00014133,7]
[408392054,1773552631675,-222.0,0.00014133,7]
[408392056,1773552631684,-624.0,0.00014138,2]
[408392058,1773552631693,-1591.78482422,0.00014156,2]
[408392060,1773552631703,-4784.1121618,0.00014179,2]
[408392062,1773552631712,-6041.83240614,0.00014294,2]
[408392064,1773552631721,-6552.21283777,0.00014379,2]
[408392066,1773552631731,-618.23134083,0.000144,2]
[408392068,1773552631740,-1352.12941601,0.000144,2]
[408392070,1773552631750,-555.0,0.00014405,2]
[408392073,1773552631760,-4593.33983225,0.000145,2]
[408392076,1773552631771,-272.69097746,0.000145,2]
[408392078,1773552631781,-160.4878236,0.000145,2]
[408392080,1773552631790,-2562.43368594,0.000145,2]
[408392082,1773552631800,-190.52324496,0.00014563,2]
[408392084,1773552631809,-312.49833716,0.00014573,2]
[408392086,1773552631818,-500.0,0.00014573,2]
[408392088,1773552631827,-500.0,0.00014573,2]
[408392090,1773552631836,-500.32182197,0.00014573,2]
[408392092,1773552631846,-407.71239442,0.00014573,2]
[408392094,1773552631855,-500.0,0.00014573,2]
[408392096,1773552631865,-503.80883782,0.00014573,2]
[408392098,1773552631874,-500.0,0.00014573,2]
[408392100,1773552631883,-500.0,0.00014573,2]
[408392102,1773552631892,-483194.04567947,0.00014573,2]
[408392104,1773552631904,-83365.56098691,0.00014573,2]
[408392107,1773552631915,-84223.95551539,0.00014573,2]
[408392109,1773552631926,-153900.48473812,0.00014573,2]
[408392111,1773552631937,-3581.25,0.00014573,2]
[408392114,1773552631952,-60229.5300163,0.00014573,2]
[408392160,1773552637591,-293.65475174,0.000145,2]
[408392161,1773552637601,-10458.34524826,0.00014573,2]
[408392167,1773552639677,-1621046.82781555,0.00014573,2]
[408392169,1773552639687,-500.0,0.000146,2]
[408392171,1773552639697,-1000.0,0.000146,2]
[408392172,1773552639709,-2500.0,0.000146,2]
[408392173,1773552639718,-1005499.51543251,0.000146,2]
[408392182,1773552645443,-114853.03340137,0.000146,2]
[408392183,1773552645718,-7093.48454092,0.000146,2]
[408392184,1773552645776,-2567.77081833,0.000146,2]
[408392187,1773552851124,-500.0,0.0001318,2]
[408392188,1773552851151,-1200.0,0.00013562,2]
[408392189,1773552851176,-2361.8,0.00013563,2]
[408392190,1773552851199,-3240.0,0.00013563,2]
[408392191,1773552851485,-500.0,0.00013573,2]
[408392192,1773552851508,-502.23388841,0.00013573,2]
[408392193,1773552851531,-500.0,0.00013573,2]
[408392194,1773552851554,-500.0,0.00013573,2]
[408392195,1773552851576,-1833.27,0.00013717,2]
[408392196,1773552851599,-200.0,0.00013743,2]
[408392197,1773552851624,-589.17956057,0.000141,2]
[408392198,1773552851647,-500.0,0.00014121,2]
[408392199,1773552851672,-619.71855644,0.00014121,2]
[408392200,1773552851695,-501.50584164,0.00014121,2]
[408392201,1773552851718,-500.0,0.00014273,2]
[408392202,1773552851742,-502.96204522,0.00014273,2]
[408392203,1773552851767,-500.0,0.00014273,2]
[408392204,1773552851791,-638.56909393,0.00014278,2]
[408392205,1773552851814,-453.549519,0.00014278,2]
[408392206,1773552851835,-243.42044518,0.00014278,2]
[408392207,1773552851858,-230.80543986,0.00014278,2]
[408392208,1773552851884,-500.0,0.00014278,2]
[408392209,1773552851909,-358.62866287,0.00014278,2]
[408392210,1773552851933,-121538.35694688,0.00014279,2]
[408392211,1773552947608,500.0,0.00014179,2]
[408392212,1773552948140,500.0,0.00014179,2]
[408392213,1773552967012,0.0008031,7.165e-05,2]
[408392214,1773552967036,194.4491969,7.165e-05,2]
[408392215,1773552967204,194.45,0.00010748,2]
[408392216,1773553646126,-156.146399,0.00013254,2]
[408392217,1773553646148,-250.0,0.00013295,2]
[408392218,1773553646169,-200.0,0.00013329,2]
[408392219,1773553646188,-151.0,0.00013329,2]
[408392220,1773553646208,-151.0,0.00013329,2]
[408392221,1773553646228,-18.622529,0.00013329,2]
[408392222,1773553706912,-2863.08,0.00013327,2]
[408392223,1773553706935,-250.0,0.00013327,2]
[408392224,1773553706956,-240.0,0.00013328,2]
[408392225,1773553706977,-132.377471,0.00013329,2]
[408392226,1773553706998,-151.0,0.00013329,2]
[408392227,1773553707019,-151.0,0.00013329,2]
[408392228,1773553707040,-151.0,0.00013329,2]
[408392229,1773553707062,-151.0,0.00013329,2]
[408392230,1773553707082,-151.0,0.00013329,2]
[408392231,1773553707103,-151.0,0.00013329,2]
[408392232,1773553707129,-151.0,0.00013329,2]
[408392233,1773553707149,-256.27832526,0.00013329,2]
[408392234,1773553707168,-300.0,0.00013336,2]
[408392235,1773553707190,-1200.0,0.00013336,2]
[408392236,1773553707211,-150.0,0.00013336,2]
[408392237,1773553707231,-260.0,0.00013337,2]
[408392238,1773553707252,-3291.26420374,0.00013337,2]